[Event "Titled Tuesday Blitz July 11 Early 2023"]
[White "Arencibia Monduy, Antonio"]
[Black "Rosh Jain"]
[WhiteFideId "3507939"]
[BlackFideId "25789465"]
[WhiteElo "2571"]
[BlackElo "2392"]
[Result "0-1"]
[Round "5"]
[TimeControl "180+2"]
[Date "2023.07.11"]
[WhiteClock "0:00:00"]
[BlackClock "0:01:39"]
[Board "78"]

1. e4 {[%clk 0:03:00]}  c5 {[%clk 0:02:59]} 2. Nf3 {[%clk 0:03:00]}  d6 {[%clk 0:02:58]} 3. c3 {[%clk 0:03:00]}  Nf6 {[%clk 0:02:58]} 4. Bd3 {[%clk 0:03:00]}  Nc6 {[%clk 0:02:57]} 5. h3 {[%clk 0:03:01]}  g6 {[%clk 0:02:54]} 6. Bc2 {[%clk 0:03:00]}  e5 {[%clk 0:02:54]} 7. O-O {[%clk 0:03:00]}  Bg7 {[%clk 0:02:55]} 8. d4 {[%clk 0:02:55]}  exd4 {[%clk 0:02:56]} 9. cxd4 {[%clk 0:02:55]}  cxd4 {[%clk 0:02:57]} 10. Nxd4 {[%clk 0:02:55]}  O-O {[%clk 0:02:58]} 11. Nb5 {[%clk 0:02:44]}  d5 {[%clk 0:02:57]} 12. exd5 {[%clk 0:02:24]}  Nxd5 {[%clk 0:02:58]} 13. N1c3 {[%clk 0:02:02]}  Be6 {[%clk 0:02:57]} 14. Nxd5 {[%clk 0:01:59]}  Bxd5 {[%clk 0:02:58]} 15. Nc3 {[%clk 0:01:50]}  Bc4 {[%clk 0:02:51]} 16. Re1 {[%clk 0:01:37]}  Qc7 {[%clk 0:02:46]} 17. Qg4 {[%clk 0:01:31]}  Ne5 {[%clk 0:02:44]} 18. Qg3 {[%clk 0:01:29]}  Qc5 {[%clk 0:02:30]} 19. Ne4 {[%clk 0:01:20]}  Qb6 {[%clk 0:02:28]} 20. Bf4 {[%clk 0:01:12]}  Qxb2 {[%clk 0:02:27]} 21. Bb3 {[%clk 0:00:53]}  Bxb3 {[%clk 0:02:23]} 22. axb3 {[%clk 0:00:53]}  Nc6 {[%clk 0:02:20]} 23. Rab1 {[%clk 0:00:50]}  Qd4 {[%clk 0:02:17]} 24. Rbd1 {[%clk 0:00:38]}  Qb6 {[%clk 0:02:14]} 25. Bc7 {[%clk 0:00:29]}  Qa6 {[%clk 0:02:04]} 26. Nc5 {[%clk 0:00:26]}  Qb5 {[%clk 0:02:04]} 27. Nd7 {[%clk 0:00:17]}  Rfe8 {[%clk 0:02:03]} 28. Rxe8+ {[%clk 0:00:14]}  Rxe8 {[%clk 0:02:03]} 29. Qf3 {[%clk 0:00:12]}  Qe2 {[%clk 0:01:46]} 30. Qxe2 {[%clk 0:00:10]}  Rxe2 {[%clk 0:01:47]} 31. Nc5 {[%clk 0:00:11]}  b6 {[%clk 0:01:46]} 32. Nd3 {[%clk 0:00:06]}  Nd4 {[%clk 0:01:44]} 33. Bg3 {[%clk 0:00:05]}  Nxb3 {[%clk 0:01:44]} 34. Nf4 {[%clk 0:00:06]}  Rd2 {[%clk 0:01:43]} 35. Re1 {[%clk 0:00:06]}  Bf6 {[%clk 0:01:42]} 36. Rb1 {[%clk 0:00:03]}  Rb2 {[%clk 0:01:41]} 37. Rd1 {[%clk 0:00:03]}  Rd2 {[%clk 0:01:40]} 38. Rb1 {[%clk 0:00:03]}  Nd4 {[%clk 0:01:41]} 39. Nd5 {[%clk 0:00:02]}  Ne2+ {[%clk 0:01:40]} 40. Kh2 {[%clk 0:00:02]}  Rxd5 {[%clk 0:01:40]} 41. Bh4 {[%clk 0:00:00]}  Bxh4 {[%clk 0:01:39]} 0-1


[Site "https://www.chess.com"]

[Event "Titled Tuesday Blitz July 11 Early 2023"]
[White "Ibarra Jerez, Jose Carlos"]
[Black "Postlmayer, Jakob"]
[WhiteFideId "2226332"]
[BlackFideId "1643622"]
[WhiteElo "2903"]
[BlackElo "2494"]
[Result "1-0"]
[Round "5"]
[TimeControl "180+2"]
[Date "2023.07.11"]
[WhiteClock "0:01:55"]
[BlackClock "0:00:56"]
[Board "79"]

1. e4 {[%clk 0:03:00]}  e5 {[%clk 0:02:59]} 2. Nf3 {[%clk 0:03:00]}  Nf6 {[%clk 0:03:00]} 3. Nc3 {[%clk 0:03:00]}  Nc6 {[%clk 0:02:59]} 4. h3 {[%clk 0:03:01]}  Bb4 {[%clk 0:02:58]} 5. Nd5 {[%clk 0:03:00]}  Nxd5 {[%clk 0:02:54]} 6. exd5 {[%clk 0:03:00]}  e4 {[%clk 0:02:55]} 7. dxc6 {[%clk 0:03:00]}  exf3 {[%clk 0:02:55]} 8. Qxf3 {[%clk 0:03:01]}  dxc6 {[%clk 0:02:55]} 9. Bc4 {[%clk 0:03:01]}  O-O {[%clk 0:02:45]} 10. O-O {[%clk 0:03:00]}  Bd6 {[%clk 0:02:29]} 11. Re1 {[%clk 0:02:54]}  Bd7 {[%clk 0:02:17]} 12. d4 {[%clk 0:02:52]}  Qh4 {[%clk 0:02:03]} 13. Re4 {[%clk 0:02:51]}  Qd8 {[%clk 0:01:57]} 14. Bd2 {[%clk 0:02:38]}  c5 {[%clk 0:01:47]} 15. dxc5 {[%clk 0:02:27]}  Bxc5 {[%clk 0:01:48]} 16. Bc3 {[%clk 0:02:27]}  b5 {[%clk 0:01:12]} 17. Qg3 {[%clk 0:02:01]}  g6 {[%clk 0:00:56]} 18. Qe5 {[%clk 0:01:55]} 1-0


[Site "https://www.chess.com"]

[Event "Titled Tuesday Blitz July 11 Early 2023"]
[White "Kantor, Gergely"]
[Black "marik_spb"]
[WhiteFideId "751499"]
[WhiteElo "2784"]
[BlackElo "2493"]
[Result "1-0"]
[Round "5"]
[TimeControl "180+2"]
[Date "2023.07.11"]
[WhiteClock "0:00:09"]
[BlackClock "0:00:00"]
[Board "80"]

1. e4 {[%clk 0:03:00]}  c6 {[%clk 0:02:43]} 2. Nf3 {[%clk 0:02:56]}  d5 {[%clk 0:02:44]} 3. d3 {[%clk 0:02:56]}  dxe4 {[%clk 0:02:43]} 4. dxe4 {[%clk 0:02:56]}  Qxd1+ {[%clk 0:02:44]} 5. Kxd1 {[%clk 0:02:57]}  Nf6 {[%clk 0:02:45]} 6. Nfd2 {[%clk 0:02:57]}  e5 {[%clk 0:02:43]} 7. f3 {[%clk 0:02:56]}  Be6 {[%clk 0:02:43]} 8. Bc4 {[%clk 0:02:56]}  Bxc4 {[%clk 0:02:27]} 9. Nxc4 {[%clk 0:02:56]}  Nfd7 {[%clk 0:02:27]} 10. a4 {[%clk 0:02:48]}  f6 {[%clk 0:02:26]} 11. a5 {[%clk 0:02:31]}  Na6 {[%clk 0:02:24]} 12. Nbd2 {[%clk 0:02:31]}  O-O-O {[%clk 0:02:15]} 13. Ke2 {[%clk 0:02:27]}  h5 {[%clk 0:01:44]} 14. c3 {[%clk 0:02:25]}  Ndc5 {[%clk 0:01:40]} 15. b4 {[%clk 0:02:26]}  Nd3 {[%clk 0:01:39]} 16. Nb3 {[%clk 0:02:26]}  Nxc1+ {[%clk 0:01:35]} 17. Raxc1 {[%clk 0:02:23]}  Be7 {[%clk 0:01:33]} 18. h4 {[%clk 0:02:14]}  Nc7 {[%clk 0:01:33]} 19. Ne3 {[%clk 0:02:11]}  g6 {[%clk 0:01:30]} 20. Nd2 {[%clk 0:02:06]}  Rd7 {[%clk 0:01:23]} 21. Ndc4 {[%clk 0:02:05]}  Rhd8 {[%clk 0:01:14]} 22. Rhd1 {[%clk 0:01:24]}  Rxd1 {[%clk 0:01:10]} 23. Rxd1 {[%clk 0:01:24]}  Rxd1 {[%clk 0:01:11]} 24. Kxd1 {[%clk 0:01:25]}  Nb5 {[%clk 0:01:07]} 25. Kc2 {[%clk 0:01:22]}  Nc7 {[%clk 0:01:03]} 26. g4 {[%clk 0:01:19]}  Ne6 {[%clk 0:00:44]} 27. gxh5 {[%clk 0:01:19]}  gxh5 {[%clk 0:00:44]} 28. Nf5 {[%clk 0:01:19]}  Kd7 {[%clk 0:00:45]} 29. Nb2 {[%clk 0:01:06]}  Bf8 {[%clk 0:00:34]} 30. Nd3 {[%clk 0:01:04]}  Ng7 {[%clk 0:00:31]} 31. Nxg7 {[%clk 0:00:23]}  Bxg7 {[%clk 0:00:31]} 32. Nc5+ {[%clk 0:00:23]}  Kc8 {[%clk 0:00:31]} 33. Ne6 {[%clk 0:00:21]}  Bh6 {[%clk 0:00:31]} 34. Kd3 {[%clk 0:00:19]}  b6 {[%clk 0:00:28]} 35. axb6 {[%clk 0:00:08]}  axb6 {[%clk 0:00:29]} 36. f4 {[%clk 0:00:07]}  exf4 {[%clk 0:00:21]} 37. Nd4 {[%clk 0:00:05]}  Kd7 {[%clk 0:00:19]} 38. Nf5 {[%clk 0:00:06]}  Bf8 {[%clk 0:00:19]} 39. Ke2 {[%clk 0:00:06]}  Ke6 {[%clk 0:00:16]} 40. Kf3 {[%clk 0:00:06]}  Ke5 {[%clk 0:00:14]} 41. Nd4 {[%clk 0:00:06]}  c5 {[%clk 0:00:13]} 42. Nc6+ {[%clk 0:00:07]}  Kd6 {[%clk 0:00:11]} 43. b5 {[%clk 0:00:07]}  Bh6 {[%clk 0:00:10]} 44. Nd8 {[%clk 0:00:06]}  Ke7 {[%clk 0:00:07]} 45. Nc6+ {[%clk 0:00:06]}  Ke6 {[%clk 0:00:07]} 46. c4 {[%clk 0:00:06]}  f5 {[%clk 0:00:06]} 47. e5 {[%clk 0:00:06]}  Kd7 {[%clk 0:00:04]} 48. Na7 {[%clk 0:00:05]}  Ke7 {[%clk 0:00:02]} 49. Nc8+ {[%clk 0:00:06]}  Ke6 {[%clk 0:00:01]} 50. Nxb6 {[%clk 0:00:06]}  Kxe5 {[%clk 0:00:02]} 51. Nd7+ {[%clk 0:00:07]}  Kd6 {[%clk 0:00:03]} 52. Nf6 {[%clk 0:00:07]}  Bg7 {[%clk 0:00:01]} 53. Nxh5 {[%clk 0:00:07]}  Be5 {[%clk 0:00:01]} 54. Nxf4 {[%clk 0:00:07]}  Bc3 {[%clk 0:00:01]} 55. Nd5 {[%clk 0:00:07]}  Bd2 {[%clk 0:00:01]} 56. b6 {[%clk 0:00:07]}  Kc6 {[%clk 0:00:02]} 57. h5 {[%clk 0:00:08]}  Bh6 {[%clk 0:00:02]} 58. Ne7+ {[%clk 0:00:08]}  Kxb6 {[%clk 0:00:02]} 59. Nxf5 {[%clk 0:00:08]}  Bg5 {[%clk 0:00:02]} 60. Ke4 {[%clk 0:00:09]}  Kc6 {[%clk 0:00:02]} 61. h6 {[%clk 0:00:09]}  Bf6 {[%clk 0:00:03]} 62. h7 {[%clk 0:00:09]}  Bh8 {[%clk 0:00:02]} 63. Nh6 {[%clk 0:00:09]}  Kd7 {[%clk 0:00:02]} 64. Nf7 {[%clk 0:00:09]}  Bf6 {[%clk 0:00:03]} 65. Kd5 {[%clk 0:00:09]}  Be7 {[%clk 0:00:00]} 66. h8=Q {[%clk 0:00:09]} 1-0


[Site "https://www.chess.com"]

[Event "Titled Tuesday Blitz July 11 Early 2023"]
[White "Namitbir Singh Walia"]
[Black "Jarovinsky, Alexey"]
[WhiteFideId "35071068"]
[BlackFideId "14115131"]
[WhiteElo "2488"]
[BlackElo "2715"]
[Result "0-1"]
[Round "5"]
[TimeControl "180+2"]
[Date "2023.07.11"]
[WhiteClock "0:00:05"]
[BlackClock "0:00:49"]
[Board "83"]

1. e4 {[%clk 0:03:00]}  Nc6 {[%clk 0:02:59]} 2. d4 {[%clk 0:02:59]}  d5 {[%clk 0:02:58]} 3. e5 {[%clk 0:02:50]}  Bf5 {[%clk 0:02:30]} 4. c3 {[%clk 0:02:43]}  e6 {[%clk 0:02:29]} 5. Bd3 {[%clk 0:02:17]}  Nge7 {[%clk 0:02:27]} 6. Ne2 {[%clk 0:02:15]}  f6 {[%clk 0:02:25]} 7. f4 {[%clk 0:02:02]}  h5 {[%clk 0:02:18]} 8. Be3 {[%clk 0:01:47]}  Qd7 {[%clk 0:02:12]} 9. Na3 {[%clk 0:01:40]}  Bxd3 {[%clk 0:02:11]} 10. Qxd3 {[%clk 0:01:34]}  Nf5 {[%clk 0:02:12]} 11. Bf2 {[%clk 0:01:33]}  Bxa3 {[%clk 0:02:07]} 12. bxa3 {[%clk 0:01:32]}  Na5 {[%clk 0:02:05]} 13. Ng3 {[%clk 0:00:57]}  Nxg3 {[%clk 0:01:39]} 14. hxg3 {[%clk 0:00:51]}  f5 {[%clk 0:01:33]} 15. g4 {[%clk 0:00:48]}  fxg4 {[%clk 0:01:29]} 16. Bh4 {[%clk 0:00:38]}  Nc4 {[%clk 0:01:26]} 17. Bg5 {[%clk 0:00:19]}  Kf7 {[%clk 0:01:12]} 18. Rb1 {[%clk 0:00:18]}  b6 {[%clk 0:01:06]} 19. O-O {[%clk 0:00:18]}  g6 {[%clk 0:01:06]} 20. Bh4 {[%clk 0:00:17]}  Rhf8 {[%clk 0:01:05]} 21. Rb3 {[%clk 0:00:12]}  Kg7 {[%clk 0:01:03]} 22. Qe2 {[%clk 0:00:11]}  Rf5 {[%clk 0:01:01]} 23. Bf6+ {[%clk 0:00:11]}  Kf7 {[%clk 0:00:59]} 24. Re1 {[%clk 0:00:11]}  a5 {[%clk 0:00:55]} 25. g3 {[%clk 0:00:10]}  Qa4 {[%clk 0:00:50]} 26. Reb1 {[%clk 0:00:05]}  Nxa3 {[%clk 0:00:49]} 0-1


[Site "https://www.chess.com"]

[Event "Titled Tuesday Blitz July 11 Early 2023"]
[White "Fiorito, Joaquin"]
[Black "Bettalli, Francesco"]
[WhiteFideId "180173"]
[BlackFideId "2816453"]
[WhiteElo "2625"]
[BlackElo "2485"]
[Result "0-1"]
[Round "5"]
[TimeControl "180+2"]
[Date "2023.07.11"]
[WhiteClock "0:00:15"]
[BlackClock "0:01:49"]
[Board "85"]

1. d4 {[%clk 0:03:00]}  g6 {[%clk 0:02:58]} 2. c4 {[%clk 0:03:00]}  Bg7 {[%clk 0:02:59]} 3. Nc3 {[%clk 0:03:00]}  c5 {[%clk 0:02:58]} 4. d5 {[%clk 0:03:00]}  Bxc3+ {[%clk 0:02:59]} 5. bxc3 {[%clk 0:02:58]}  f5 {[%clk 0:03:00]} 6. h4 {[%clk 0:02:56]}  Nf6 {[%clk 0:02:57]} 7. e3 {[%clk 0:02:55]}  d6 {[%clk 0:02:57]} 8. Be2 {[%clk 0:02:53]}  Nbd7 {[%clk 0:02:56]} 9. h5 {[%clk 0:02:53]}  Kf7 {[%clk 0:02:56]} 10. Nf3 {[%clk 0:02:50]}  Ne5 {[%clk 0:02:56]} 11. Ng5+ {[%clk 0:02:48]}  Kg7 {[%clk 0:02:56]} 12. h6+ {[%clk 0:02:05]}  Kg8 {[%clk 0:02:56]} 13. Qc2 {[%clk 0:02:02]}  e6 {[%clk 0:02:54]} 14. O-O {[%clk 0:01:57]}  exd5 {[%clk 0:02:54]} 15. cxd5 {[%clk 0:01:53]}  Nfg4 {[%clk 0:02:54]} 16. f4 {[%clk 0:01:49]}  Nxh6 {[%clk 0:02:52]} 17. fxe5 {[%clk 0:01:40]}  Qxg5 {[%clk 0:02:51]} 18. e4 {[%clk 0:01:41]}  Qh4 {[%clk 0:02:51]} 19. Bxh6 {[%clk 0:01:39]}  Qxh6 {[%clk 0:02:50]} 20. e6 {[%clk 0:01:23]}  Qe3+ {[%clk 0:02:49]} 21. Rf2 {[%clk 0:01:23]}  Qxe4 {[%clk 0:02:49]} 22. Qxe4 {[%clk 0:01:23]}  fxe4 {[%clk 0:02:50]} 23. Raf1 {[%clk 0:01:23]}  Kg7 {[%clk 0:02:48]} 24. Rf7+ {[%clk 0:01:23]}  Kh6 {[%clk 0:02:49]} 25. R1f4 {[%clk 0:01:22]}  b6 {[%clk 0:02:43]} 26. Kf2 {[%clk 0:01:08]}  Rb8 {[%clk 0:02:33]} 27. Ke3 {[%clk 0:01:06]}  Bb7 {[%clk 0:02:33]} 28. c4 {[%clk 0:01:04]}  b5 {[%clk 0:02:33]} 29. Rd7 {[%clk 0:00:53]}  bxc4 {[%clk 0:02:32]} 30. Bxc4 {[%clk 0:00:53]}  Rhe8 {[%clk 0:02:20]} 31. Rh4+ {[%clk 0:00:52]}  Kg5 {[%clk 0:02:20]} 32. Rhxh7 {[%clk 0:00:52]}  Ba8 {[%clk 0:02:16]} 33. Rxd6 {[%clk 0:00:52]}  Rb4 {[%clk 0:02:17]} 34. Be2 {[%clk 0:00:47]}  Rd4 {[%clk 0:02:15]} 35. Rhd7 {[%clk 0:00:45]}  Kf6 {[%clk 0:02:11]} 36. Bg4 {[%clk 0:00:36]}  Ke5 {[%clk 0:02:10]} 37. Rd8 {[%clk 0:00:34]}  Rxd8 {[%clk 0:02:02]} 38. Rxd8 {[%clk 0:00:35]}  Bxd5 {[%clk 0:02:03]} 39. Rxd5+ {[%clk 0:00:27]}  Kxd5 {[%clk 0:01:54]} 40. e7 {[%clk 0:00:27]}  Rd3+ {[%clk 0:01:53]} 41. Ke2 {[%clk 0:00:27]}  Ra3 {[%clk 0:01:52]} 42. e8=Q {[%clk 0:00:23]}  Rxa2+ {[%clk 0:01:53]} 43. Kf1 {[%clk 0:00:23]}  Kd4 {[%clk 0:01:51]} 44. Be2 {[%clk 0:00:20]}  Ke3 {[%clk 0:01:49]} 45. Qb5 {[%clk 0:00:20]}  Ra1+ {[%clk 0:01:49]} 46. Bd1 {[%clk 0:00:15]}  Rxd1# {[%clk 0:01:49]} 0-1


[Site "https://www.chess.com"]

[Event "Titled Tuesday Blitz July 11 Early 2023"]
[White "Iskusnyh, Sergei"]
[Black "Baches Garcia, Guillermo"]
[WhiteFideId "4120027"]
[BlackFideId "2209764"]
[WhiteElo "2613"]
[BlackElo "2482"]
[Result "1-0"]
[Round "5"]
[TimeControl "180+2"]
[Date "2023.07.11"]
[WhiteClock "0:00:02"]
[BlackClock "0:00:13"]
[Board "86"]

1. d4 {[%clk 0:02:25]}  d5 {[%clk 0:02:59]} 2. c4 {[%clk 0:02:25]}  e6 {[%clk 0:02:59]} 3. Nf3 {[%clk 0:02:25]}  h6 {[%clk 0:03:00]} 4. g3 {[%clk 0:02:23]}  Nf6 {[%clk 0:03:00]} 5. Bg2 {[%clk 0:02:24]}  Bd6 {[%clk 0:03:00]} 6. O-O {[%clk 0:02:22]}  O-O {[%clk 0:03:01]} 7. Nbd2 {[%clk 0:02:21]}  c5 {[%clk 0:02:59]} 8. cxd5 {[%clk 0:02:20]}  exd5 {[%clk 0:02:59]} 9. dxc5 {[%clk 0:02:20]}  Bxc5 {[%clk 0:02:59]} 10. Nb3 {[%clk 0:02:14]}  Bb6 {[%clk 0:02:59]} 11. Nbd4 {[%clk 0:02:13]}  Nc6 {[%clk 0:02:59]} 12. b3 {[%clk 0:02:09]}  Re8 {[%clk 0:02:54]} 13. Bb2 {[%clk 0:02:08]}  Bg4 {[%clk 0:02:36]} 14. Nxc6 {[%clk 0:02:03]}  bxc6 {[%clk 0:02:35]} 15. Rc1 {[%clk 0:02:01]}  Rc8 {[%clk 0:02:11]} 16. e3 {[%clk 0:01:54]}  Qd6 {[%clk 0:01:59]} 17. Qd3 {[%clk 0:01:48]}  Ne4 {[%clk 0:01:48]} 18. Nd4 {[%clk 0:01:33]}  Bd7 {[%clk 0:01:36]} 19. Rfd1 {[%clk 0:01:29]}  h5 {[%clk 0:01:23]} 20. Bf3 {[%clk 0:01:02]}  h4 {[%clk 0:01:13]} 21. Nc2 {[%clk 0:00:55]}  Qg6 {[%clk 0:00:45]} 22. Bg2 {[%clk 0:00:44]}  hxg3 {[%clk 0:00:41]} 23. hxg3 {[%clk 0:00:38]}  Qh5 {[%clk 0:00:38]} 24. Nd4 {[%clk 0:00:31]}  Ng5 {[%clk 0:00:23]} 25. Qf1 {[%clk 0:00:18]}  Bh3 {[%clk 0:00:20]} 26. Qe2 {[%clk 0:00:17]}  Bg4 {[%clk 0:00:16]} 27. Qf1 {[%clk 0:00:09]}  Bxd1 {[%clk 0:00:15]} 28. Rxd1 {[%clk 0:00:08]}  Bxd4 {[%clk 0:00:15]} 29. Rxd4 {[%clk 0:00:07]}  Nf3+ {[%clk 0:00:15]} 30. Bxf3 {[%clk 0:00:07]}  Qxf3 {[%clk 0:00:15]} 31. Rf4 {[%clk 0:00:08]}  Qh5 {[%clk 0:00:14]} 32. Rh4 {[%clk 0:00:08]}  Qg6 {[%clk 0:00:13]} 33. Qh3 {[%clk 0:00:08]}  f6 {[%clk 0:00:12]} 34. Rh8+ {[%clk 0:00:05]}  Kf7 {[%clk 0:00:12]} 35. Qd7+ {[%clk 0:00:05]}  Re7 {[%clk 0:00:09]} 36. Qxc8 {[%clk 0:00:05]}  Qb1+ {[%clk 0:00:09]} 37. Kg2 {[%clk 0:00:04]}  Qxb2 {[%clk 0:00:09]} 38. Qf8+ {[%clk 0:00:04]}  Ke6 {[%clk 0:00:10]} 39. Qg8+ {[%clk 0:00:04]}  Kd6 {[%clk 0:00:09]} 40. Qb8+ {[%clk 0:00:04]}  Ke6 {[%clk 0:00:10]} 41. Qc8+ {[%clk 0:00:03]}  Kf7 {[%clk 0:00:10]} 42. Qg8+ {[%clk 0:00:02]}  Kg6 {[%clk 0:00:09]} 43. Rh4 {[%clk 0:00:03]}  Kf5 {[%clk 0:00:09]} 44. Rf4+ {[%clk 0:00:02]}  Kg5 {[%clk 0:00:09]} 45. Qh7 {[%clk 0:00:02]}  Qe5 {[%clk 0:00:09]} 46. Qh4+ {[%clk 0:00:02]}  Kg6 {[%clk 0:00:09]} 47. Rg4+ {[%clk 0:00:03]}  Kf7 {[%clk 0:00:09]} 48. Qh7 {[%clk 0:00:03]}  Qe6 {[%clk 0:00:09]} 49. Qxg7+ {[%clk 0:00:03]}  Ke8 {[%clk 0:00:10]} 50. Qg8+ {[%clk 0:00:03]}  Kd7 {[%clk 0:00:10]} 51. Qxe6+ {[%clk 0:00:03]}  Kxe6 {[%clk 0:00:10]} 52. Rg8 {[%clk 0:00:04]}  c5 {[%clk 0:00:10]} 53. Rc8 {[%clk 0:00:04]}  Kd6 {[%clk 0:00:11]} 54. Kf3 {[%clk 0:00:04]}  Rb7 {[%clk 0:00:11]} 55. Rd8+ {[%clk 0:00:04]}  Ke5 {[%clk 0:00:11]} 56. Ke2 {[%clk 0:00:03]}  c4 {[%clk 0:00:11]} 57. f4+ {[%clk 0:00:03]}  Ke6 {[%clk 0:00:11]} 58. bxc4 {[%clk 0:00:03]}  dxc4 {[%clk 0:00:11]} 59. Rd2 {[%clk 0:00:03]}  Rb4 {[%clk 0:00:11]} 60. Rc2 {[%clk 0:00:03]}  Ra4 {[%clk 0:00:11]} 61. Kf3 {[%clk 0:00:03]}  f5 {[%clk 0:00:12]} 62. g4 {[%clk 0:00:03]}  fxg4+ {[%clk 0:00:11]} 63. Kxg4 {[%clk 0:00:03]}  Kd5 {[%clk 0:00:12]} 64. Kf3 {[%clk 0:00:03]}  Ra3 {[%clk 0:00:12]} 65. Rd2+ {[%clk 0:00:03]}  Kc5 {[%clk 0:00:12]} 66. f5 {[%clk 0:00:03]}  c3 {[%clk 0:00:12]} 67. Rd8 {[%clk 0:00:03]}  Kb4 {[%clk 0:00:11]} 68. Rc8 {[%clk 0:00:03]}  Rxa2 {[%clk 0:00:11]} 69. e4 {[%clk 0:00:03]}  Ra1 {[%clk 0:00:12]} 70. e5 {[%clk 0:00:03]}  Rf1+ {[%clk 0:00:11]} 71. Ke4 {[%clk 0:00:02]}  a5 {[%clk 0:00:12]} 72. e6 {[%clk 0:00:02]}  a4 {[%clk 0:00:12]} 73. Kd3 {[%clk 0:00:02]}  Rd1+ {[%clk 0:00:12]} 74. Ke2 {[%clk 0:00:02]}  Rd2+ {[%clk 0:00:12]} 75. Ke3 {[%clk 0:00:03]}  Rd5 {[%clk 0:00:12]} 76. Ke4 {[%clk 0:00:02]}  Rd1 {[%clk 0:00:12]} 77. f6 {[%clk 0:00:03]}  Re1+ {[%clk 0:00:12]} 78. Kd5 {[%clk 0:00:02]}  a3 {[%clk 0:00:13]} 79. Rb8+ {[%clk 0:00:02]}  Ka4 {[%clk 0:00:13]} 80. Kc4 {[%clk 0:00:02]}  c2 {[%clk 0:00:13]} 81. Ra8# {[%clk 0:00:02]} 1-0


[Site "https://www.chess.com"]

[Event "Titled Tuesday Blitz July 11 Early 2023"]
[White "Jovic, Stanoje"]
[Black "Krallis, Christos"]
[WhiteFideId "905020"]
[BlackFideId "4298896"]
[WhiteElo "2479"]
[BlackElo "2586"]
[Result "1-0"]
[Round "5"]
[TimeControl "180+2"]
[Date "2023.07.11"]
[WhiteClock "0:00:59"]
[BlackClock "0:00:00"]
[Board "88"]

1. c4 {[%clk 0:03:00]}  c5 {[%clk 0:03:00]} 2. g3 {[%clk 0:03:00]}  Nc6 {[%clk 0:03:00]} 3. Bg2 {[%clk 0:03:01]}  g6 {[%clk 0:03:00]} 4. Nc3 {[%clk 0:03:01]}  Bg7 {[%clk 0:03:01]} 5. Nf3 {[%clk 0:03:01]}  e5 {[%clk 0:03:00]} 6. O-O {[%clk 0:03:01]}  Nge7 {[%clk 0:03:01]} 7. Ne1 {[%clk 0:03:01]}  O-O {[%clk 0:03:01]} 8. Nc2 {[%clk 0:03:01]}  d6 {[%clk 0:03:01]} 9. Ne3 {[%clk 0:03:01]}  Be6 {[%clk 0:03:02]} 10. Ned5 {[%clk 0:03:01]}  Qd7 {[%clk 0:03:01]} 11. Qa4 {[%clk 0:03:01]}  Rfb8 {[%clk 0:02:46]} 12. d3 {[%clk 0:03:00]}  Nc8 {[%clk 0:02:42]} 13. Bg5 {[%clk 0:02:52]}  a6 {[%clk 0:02:29]} 14. a3 {[%clk 0:02:48]}  b5 {[%clk 0:02:28]} 15. Qd1 {[%clk 0:02:40]}  b4 {[%clk 0:02:12]} 16. Ne4 {[%clk 0:02:35]}  Bxd5 {[%clk 0:01:47]} 17. cxd5 {[%clk 0:02:34]}  N6e7 {[%clk 0:01:43]} 18. Bxe7 {[%clk 0:02:13]}  Nxe7 {[%clk 0:01:36]} 19. Nd2 {[%clk 0:02:13]}  Nc8 {[%clk 0:01:20]} 20. axb4 {[%clk 0:02:11]}  Rxb4 {[%clk 0:01:18]} 21. Nc4 {[%clk 0:02:10]}  Qc7 {[%clk 0:01:05]} 22. Ra4 {[%clk 0:02:02]}  Rxa4 {[%clk 0:01:03]} 23. Qxa4 {[%clk 0:02:02]}  Nb6 {[%clk 0:01:04]} 24. Qc6 {[%clk 0:01:59]}  Qxc6 {[%clk 0:00:59]} 25. dxc6 {[%clk 0:01:59]}  Nxc4 {[%clk 0:00:58]} 26. dxc4 {[%clk 0:01:59]}  Ra7 {[%clk 0:00:51]} 27. Bh3 {[%clk 0:01:54]}  Bf6 {[%clk 0:00:47]} 28. Rd1 {[%clk 0:01:47]}  Be7 {[%clk 0:00:42]} 29. Bc8 {[%clk 0:01:46]}  Rc7 {[%clk 0:00:35]} 30. Bb7 {[%clk 0:01:46]}  Bf8 {[%clk 0:00:30]} 31. Ra1 {[%clk 0:01:43]}  Kg7 {[%clk 0:00:23]} 32. Rxa6 {[%clk 0:01:42]}  Kf6 {[%clk 0:00:23]} 33. e4 {[%clk 0:01:41]}  Ke7 {[%clk 0:00:20]} 34. Ra8 {[%clk 0:01:35]}  Bh6 {[%clk 0:00:19]} 35. Rh8 {[%clk 0:01:26]}  Bg7 {[%clk 0:00:14]} 36. Rxh7 {[%clk 0:01:21]}  Kf8 {[%clk 0:00:11]} 37. g4 {[%clk 0:01:21]}  Bf6 {[%clk 0:00:10]} 38. Rh3 {[%clk 0:01:20]}  Bg5 {[%clk 0:00:09]} 39. Ra3 {[%clk 0:01:19]}  Ke7 {[%clk 0:00:09]} 40. Kg2 {[%clk 0:01:16]}  Bc1 {[%clk 0:00:09]} 41. Ra2 {[%clk 0:01:15]}  Bd2 {[%clk 0:00:05]} 42. b3 {[%clk 0:01:14]}  Bb4 {[%clk 0:00:05]} 43. h4 {[%clk 0:01:11]}  Bc3 {[%clk 0:00:02]} 44. Ra8 {[%clk 0:01:08]}  Bb4 {[%clk 0:00:02]} 45. h5 {[%clk 0:01:08]}  gxh5 {[%clk 0:00:03]} 46. gxh5 {[%clk 0:01:08]}  Kf6 {[%clk 0:00:03]} 47. Rd8 {[%clk 0:01:03]}  Ke7 {[%clk 0:00:00]} 48. h6 {[%clk 0:00:59]} 1-0


[Site "https://www.chess.com"]

[Event "Titled Tuesday Blitz July 11 Early 2023"]
[White "Fernandez Lopez, Ruben"]
[Black "Zavgorodniy, Sergiy"]
[WhiteFideId "24518298"]
[BlackFideId "14110148"]
[WhiteElo "2476"]
[BlackElo "2585"]
[Result "0-1"]
[Round "5"]
[TimeControl "180+2"]
[Date "2023.07.11"]
[WhiteClock "0:01:15"]
[BlackClock "0:00:26"]
[Board "89"]

1. b3 {[%clk 0:03:00]}  Nf6 {[%clk 0:01:55]} 2. Bb2 {[%clk 0:03:00]}  d6 {[%clk 0:01:55]} 3. e3 {[%clk 0:02:59]}  e5 {[%clk 0:01:55]} 4. d4 {[%clk 0:03:00]}  e4 {[%clk 0:01:56]} 5. c4 {[%clk 0:02:59]}  c6 {[%clk 0:01:55]} 6. Nc3 {[%clk 0:03:00]}  d5 {[%clk 0:01:54]} 7. Rc1 {[%clk 0:03:00]}  a6 {[%clk 0:01:53]} 8. Nge2 {[%clk 0:03:00]}  Bd6 {[%clk 0:01:53]} 9. Nf4 {[%clk 0:03:00]}  Bxf4 {[%clk 0:01:52]} 10. exf4 {[%clk 0:03:00]}  O-O {[%clk 0:01:52]} 11. Be2 {[%clk 0:03:00]}  Re8 {[%clk 0:01:52]} 12. O-O {[%clk 0:02:59]}  Be6 {[%clk 0:01:48]} 13. cxd5 {[%clk 0:02:58]}  cxd5 {[%clk 0:01:47]} 14. Qd2 {[%clk 0:02:58]}  Nc6 {[%clk 0:01:44]} 15. Nd1 {[%clk 0:02:58]}  h5 {[%clk 0:01:35]} 16. Ne3 {[%clk 0:02:57]}  g6 {[%clk 0:01:31]} 17. Rc2 {[%clk 0:02:43]}  Kg7 {[%clk 0:01:30]} 18. Qd1 {[%clk 0:02:38]}  Qd6 {[%clk 0:01:22]} 19. Bc1 {[%clk 0:02:32]}  Rac8 {[%clk 0:01:12]} 20. Bd2 {[%clk 0:02:32]}  Nxd4 {[%clk 0:01:07]} 21. Rxc8 {[%clk 0:02:31]}  Rxc8 {[%clk 0:01:05]} 22. Re1 {[%clk 0:02:27]}  Nxe2+ {[%clk 0:01:01]} 23. Rxe2 {[%clk 0:02:27]}  d4 {[%clk 0:01:01]} 24. Nf1 {[%clk 0:02:21]}  Bg4 {[%clk 0:01:00]} 25. h3 {[%clk 0:02:12]}  Bxe2 {[%clk 0:00:58]} 26. Qxe2 {[%clk 0:02:12]}  Qd5 {[%clk 0:00:48]} 27. Ng3 {[%clk 0:02:12]}  Rc2 {[%clk 0:00:33]} 28. f5 {[%clk 0:02:11]}  e3 {[%clk 0:00:33]} 29. fxe3 {[%clk 0:02:05]}  Ne4 {[%clk 0:00:33]} 30. Nxe4 {[%clk 0:02:03]}  Qxe4 {[%clk 0:00:33]} 31. f6+ {[%clk 0:01:42]}  Kh7 {[%clk 0:00:32]} 32. Kf2 {[%clk 0:01:19]}  dxe3+ {[%clk 0:00:29]} 33. Qxe3 {[%clk 0:01:20]}  Qxe3+ {[%clk 0:00:28]} 34. Kxe3 {[%clk 0:01:21]}  Rxa2 {[%clk 0:00:28]} 35. g4 {[%clk 0:01:21]}  Rb2 {[%clk 0:00:27]} 36. Bc3 {[%clk 0:01:16]}  Rxb3 {[%clk 0:00:26]} 37. Kd3 {[%clk 0:01:17]}  hxg4 {[%clk 0:00:26]} 38. hxg4 {[%clk 0:01:17]}  g5 {[%clk 0:00:25]} 39. Kc2 {[%clk 0:01:16]}  Rxc3+ {[%clk 0:00:25]} 40. Kxc3 {[%clk 0:01:15]}  Kg6 {[%clk 0:00:26]} 0-1


[Site "https://www.chess.com"]